bitfinex/quotes_SOLUSD_20251120
["timestamp","ask_amount","ask_price","bid_price","bid_amount"]
[1763623790457,1.66,143.14,143.13,0.66]
[1763623792061,1.66,143.14,143.13,7.64665548]
[1763623792238,1.66,143.14,143.13,0.66]
[1763623794164,1.66,143.14,143.13,7.64665548]
[1763623794544,11.08898777,143.17,143.13,7.64665548]
[1763623794750,1.66,143.16,143.14,0.66]
[1763623795575,0.56,143.21,143.14,11.74985841]
[1763623795739,5.76411115,143.2,143.14,11.74985841]
[1763623795941,5.76411115,143.2,143.15,0.66]
[1763623796665,12.74747633,143.2,143.16,6.98519139]
[1763623796873,11.27031424,143.2,143.16,6.98519139]
[1763623797160,2.62694906,143.19,143.16,0.66]
[1763623798461,9.61089102,143.19,143.16,0.66]
[1763623801181,4.28694906,143.2,143.16,7.6451315]
[1763623801380,4.28694906,143.2,143.14,0.66]
[1763623801381,2.62694906,143.17,143.14,0.66]
[1763623801667,2.62694906,143.17,143.15,0.66]
[1763623801668,4.28694906,143.17,143.15,0.66]
[1763623802756,4.28694906,143.17,143.14,0.66]
[1763623802974,2.62694906,143.16,143.14,0.66]
[1763623803559,11.2719748,143.17,143.14,0.66]
[1763623803758,1.66,143.17,143.14,0.66]
[1763623804062,4.28694906,143.17,143.14,0.66]
[1763623804479,4.28694906,143.17,143.14,7.64612585]
[1763623804480,1.66,143.17,143.14,7.64612585]
[1763623804864,1.66,143.17,143.15,0.66]
[1763623805373,1.66,143.17,143.15,7.64562601]
[1763623805770,1.66,143.17,143.16,0.66]
[1763623806386,1.66,143.17,143.14,6.98597062]
[1763623806588,1.66,143.17,143.15,0.66]
[1763623807596,1.66,143.17,143.15,7.6455424]
[1763623808095,1.66,143.17,143.16,0.66]
[1763623810374,1.66,143.17,143.16,7.64519139]
[1763623811094,1.66,143.19,143.16,7.64519139]
[1763623811288,1.66,143.19,143.17,0.66]
[1763623812399,2.62694906,143.22,143.17,3.28694906]
[1763623812569,1.66,143.21,143.17,3.28694906]
[1763623812898,1.66,143.21,143.18,0.66]
[1763623813069,1.66,143.21,143.18,3.28694906]
[1763623813469,1.66,143.21,143.19,7.64372791]
[1763623813987,1.66,143.21,143.2,0.66]
[1763623814581,2.62694906,143.24,143.2,0.66]
[1763623814787,1.66,143.23,143.2,0.66]
[1763623815096,2.62694906,143.25,143.2,3.28694906]
[1763623815283,1.66,143.24,143.2,0.66]
[1763623815484,1.66,143.24,143.21,0.66]
[1763623817384,1.66,143.24,143.22,6.98226504]
[1763623817786,1.66,143.24,143.22,7.64226504]
[1763623817980,1.66,143.24,143.22,0.66]
[1763623818181,1.66,143.24,143.21,6.98267338]
[1763623818395,1.66,143.24,143.23,0.66]
[1763623818603,1.66,143.24,143.22,0.66]
[1763623819179,4.28694906,143.24,143.22,0.66]
[1763623824307,11.26824288,143.24,143.22,0.66]
[1763623825108,0.56,143.23,143.19,0.66]
[1763623825278,2.62694906,143.22,143.19,0.66]
[1763623825910,2.62694906,143.23,143.19,0.66]
[1763623827020,9.60890167,143.23,143.19,7.64364709]
[1763623827207,2.62694906,143.21,143.17,6.98456803]
[1763623827409,4.28694906,143.21,143.18,0.66]
[1763623827616,2.62694906,143.2,143.18,0.66]
[1763623827789,4.28694906,143.21,143.18,0.66]
[1763623828110,6.98117081,143.25,143.2,2.62694906]
[1763623828300,1.66,143.23,143.18,0.66]
[1763623828478,1.66,143.23,143.19,2.62694906]
[1763623828683,4.28694906,143.23,143.19,2.62694906]
[1763623828911,4.28694906,143.23,143.2,0.69]
[1763623829213,1.66,143.23,143.2,7.67319418]
[1763623829387,1.66,143.23,143.2,10.30014324]
[1763623829719,1.66,143.23,143.21,0.69]
[1763623830420,4.28694906,143.23,143.21,0.69]
[1763623832019,4.28694906,143.23,143.19,2.62694906]
[1763623832193,2.62694906,143.2,143.17,0.69]
[1763623832396,4.28694906,143.2,143.17,0.69]
[1763623833620,4.28694906,143.2,143.17,7.67470092]
[1763623834115,1.66,143.2,143.18,3.31694906]
[1763623834313,1.66,143.2,143.19,0.69]
[1763623836509,1.66,143.2,143.19,7.67372791]
[1763623836917,1.66,143.22,143.19,0.69]
[1763623837120,4.28694906,143.22,143.2,0.69]
[1763623837719,11.26930792,143.22,143.18,6.9840105]
[1763623837940,11.26930792,143.22,143.19,0.69]
[1763623838725,2.62694906,143.21,143.17,6.9845795]
[1763623838929,2.62694906,143.21,143.18,0.69]
[1763623841136,9.60983848,143.21,143.18,0.69]
[1763623841635,2.62694906,143.2,143.18,0.69]
[1763623843628,9.60983848,143.21,143.18,0.69]
[1763623844136,2.62694906,143.21,143.18,7.67420548]
[1763623844317,9.60981254,143.21,143.18,7.67420548]
[1763623844515,2.62694906,143.21,143.19,0.69]
[1763623844935,9.60970912,143.21,143.19,0.69]
[1763623845124,9.60970912,143.21,143.18,7.67420548]
[1763623846823,9.60970912,143.21,143.18,0.69]
[1763623848032,2.62694906,143.21,143.18,0.69]
[1763623848333,2.62694906,143.21,143.18,7.67417377]
[1763623849217,2.62694906,143.21,143.19,0.69]
[1763623849910,1.66,143.22,143.19,7.67365914]
[1763623850233,2.62694906,143.25,143.2,2.62694906]
[1763623850417,1.66,143.24,143.21,3.29694906]
[1763623850612,1.66,143.24,143.22,0.67]
[1763623851334,4.28694906,143.24,143.21,0.67]
[1763623851836,4.84694906,143.24,143.2,0.67]
[1763623852038,11.82849939,143.24,143.2,7.65319134]
[1763623852504,11.26849939,143.24,143.21,0.67]
[1763623854632,1.66,143.24,143.21,7.65275167]
[1763623855032,1.66,143.24,143.22,0.67]
[1763623860229,1.66,143.24,143.22,11.75361996]
[1763623860727,1.66,143.26,143.23,0.67]
[1763623860926,8.64044132,143.26,143.23,0.67]
[1763623861524,1.66,143.26,143.23,11.75319251]
[1763623861943,1.66,143.26,143.24,0.67]
[1763623862525,18.007716,143.29,143.25,4.10154313]
[1763623862526,6.97904165,143.29,143.25,4.10154313]
[1763623862718,1.66,143.28,143.25,4.10154313]
[1763623862918,1.66,143.28,143.26,0.67]
[1763623863114,1.66,143.28,143.26,7.65021016]
[1763623863427,1.66,143.28,143.26,0.67]
[1763623863948,1.66,143.28,143.25,7.65063067]
[1763623864658,1.66,143.28,143.26,0.67]
[1763623864819,1.66,143.28,143.26,4.77154313]
[1763623865019,1.66,143.28,143.26,11.75146128]
[1763623865223,1.66,143.3,143.27,0.67]
[1763623865631,1.66,143.3,143.27,4.77154313]
[1763623865840,4.10154313,143.34,143.29,4.10154313]
[1763623866028,5.76154313,143.34,143.29,4.10154313]
[1763623866230,5.76154313,143.34,143.3,0.67]
[1763623866450,5.76154313,143.34,143.3,4.77154313]
[1763623866451,12.73806632,143.34,143.3,4.77154313]
[1763623866948,12.73806632,143.34,143.31,0.67]
[1763623867320,13.29806632,143.34,143.31,0.67]
[1763623868325,12.73806632,143.34,143.31,0.67]
[1763623871654,1.66,143.34,143.31,11.74936252]
[1763623872055,1.66,143.34,143.32,0.67]
[1763623873534,1.66,143.34,143.32,7.64733507]
[1763623873949,1.66,143.34,143.33,0.67]
[1763623876059,1.66,143.34,143.29,35.56747704]
[1763623876352,12.73799471,143.34,143.3,7.64823206]
[1763623876528,4.10154313,143.33,143.3,7.64823206]
[1763623876724,12.73799471,143.34,143.31,0.67]
[1763623876951,1.66,143.34,143.31,0.67]
[1763623877145,1.66,143.34,143.31,4.77154313]
[1763623877355,1.66,143.34,143.32,4.10154313]
[1763623877560,1.66,143.34,143.32,4.77154313]
[1763623877762,1.66,143.34,143.33,0.67]
[1763623878649,1.66,143.34,143.31,11.07938402]
[1763623878953,1.66,143.34,143.32,0.67]
[1763623879459,5.76154313,143.34,143.31,7.64784089]
[1763623879653,4.10154313,143.33,143.31,0.67]
[1763623880168,12.7381815,143.34,143.31,0.67]
[1763623880636,8.63663837,143.34,143.31,0.67]
[1763623880840,1.66,143.34,143.31,7.64787897]
[1763623881161,1.66,143.34,143.31,0.67]
[1763623881665,1.66,143.34,143.31,7.64786979]
[1763623881963,1.66,143.34,143.32,0.71]
[1763623882163,0.2,143.35,143.33,4.10154313]
[1763623882628,0.2,143.35,143.34,0.71]
[1763623882828,0.2,143.35,143.34,22.93250313]
[1763623883058,0.2,143.37,143.36,4.10154313]
[1763623883433,0.2,143.37,143.36,4.81154313]
[1763623883841,0.2,143.37,143.35,11.78708747]
[1763623884064,0.2,143.37,143.36,0.71]
[1763623885268,0.2,143.37,143.34,29.90876758]
[1763623885439,0.2,143.37,143.35,0.71]
[1763623888078,7.17498553,143.37,143.35,0.71]
[1763623888368,7.17498553,143.37,143.33,11.07827897]
[1763623888369,2.37,143.36,143.31,6.97758528]
[1763623888541,2.37,143.36,143.31,7.68758528]
[1763623888542,4.10154313,143.35,143.31,7.68758528]
[1763623888747,2.37,143.36,143.32,4.81154313]
[1763623888935,6.47154313,143.36,143.32,0.71]
[1763623889348,1.66,143.36,143.32,4.10154313]
[1763623889556,0.71,143.35,143.31,4.81154313]
[1763623889744,5.76154313,143.36,143.31,4.81154313]
[1763623889957,6.47154313,143.36,143.32,0.71]
[1763623890271,6.97593303,143.35,143.32,0.71]
[1763623893881,7.68593303,143.35,143.32,0.71]
[1763623894284,6.97593303,143.35,143.32,0.71]
[1763623896072,28.51730873,143.35,143.29,18.12096]
[1763623896289,4.10154313,143.3,143.25,4.10154313]
[1763623896595,1.66,143.3,143.28,0.71]
[1763623897175,1.66,143.31,143.28,4.81154313]
[1763623897544,1.66,143.31,143.29,0.71]
[1763623899768,1.66,143.31,143.29,4.81154313]
[1763623900297,1.66,143.31,143.3,0.71]
[1763623901081,11.07889495,143.33,143.3,0.71]
[1763623901082,8.63735182,143.33,143.3,0.71]
[1763623902792,1.66,143.33,143.31,0.71]
[1763623902996,30.18085694,143.33,143.27,18.12096]
[1763623903284,4.10154313,143.28,143.22,0.71]
[1763623903480,5.76154313,143.27,143.22,0.71]
[1763623903683,5.76154313,143.27,143.22,22.93250313]
[1763623903873,6.47154313,143.27,143.22,22.93250313]
[1763623904071,6.47154313,143.27,143.23,0.71]
[1763623904267,13.45178424,143.27,143.23,0.71]
[1763623904464,13.45178424,143.27,143.21,4.10154313]
[1763623904465,4.81154313,143.26,143.21,4.10154313]
[1763623904671,4.10154313,143.24,143.2,0.71]
[1763623904871,1.66,143.23,143.2,0.71]
[1763623905073,1.66,143.23,143.2,7.69313515]
[1763623907098,1.66,143.23,143.21,0.71]
[1763623908996,1.66,143.23,143.21,7.69258841]
[1763623909301,1.66,143.27,143.23,6.98177756]
[1763623909478,1.66,143.27,143.24,4.81154313]
[1763623910316,1.66,143.27,143.25,4.78154313]
[1763623910606,1.66,143.27,143.25,4.10154313]
[1763623910786,1.66,143.27,143.26,0.68]
[1763623911197,1.66,143.27,143.26,4.78154313]
[1763623911908,1.66,143.3,143.26,4.78154313]
[1763623912206,1.66,143.3,143.27,0.68]
[1763623912889,8.63837476,143.3,143.27,0.68]
[1763623913117,8.63837476,143.3,143.26,11.08148934]
[1763623913293,9.32837476,143.3,143.26,4.78154313]
[1763623913492,6.45154313,143.3,143.26,7.6602188]
[1763623914016,13.42996078,143.3,143.26,0.68]
[1763623914192,13.42996078,143.3,143.26,7.66026798]
[1763623914896,13.42996078,143.3,143.26,0.68]
[1763623915914,4.79154313,143.29,143.25,6.9806954]
[1763623916106,4.79154313,143.29,143.25,7.6606954]
[1763623916721,0.69,143.29,143.26,0.68]
[1763623917020,12.73996078,143.3,143.26,7.66029307]
[1763623917194,13.42996078,143.3,143.26,7.66029307]
[1763623918419,9.32841765,143.3,143.26,7.66029307]
[1763623920217,9.32841765,143.3,143.27,0.68]
[1763623920825,9.32841765,143.3,143.26,0.68]
[1763623921318,18.13276146,143.33,143.28,2.6230407]
[1763623921527,1.66,143.33,143.31,2.6230407]
[1763623921994,1.66,143.33,143.29,2.6230407]
[1763623922192,1.66,143.33,143.29,3.3030407]
[1763623922421,1.66,143.33,143.3,0.68]
[1763623923614,9.32694376,143.33,143.3,0.68]
[1763623923817,11.94998446,143.33,143.28,10.28223377]
[1763623924016,11.94998446,143.33,143.29,0.68]
[1763623925324,2.6230407,143.31,143.27,18.12096]
[1763623925505,1.66,143.3,143.27,0.68]
[1763623926105,1.66,143.3,143.27,3.3030407]
[1763623926623,1.66,143.3,143.28,0.68]
[1763623927325,1.66,143.32,143.29,2.6230407]
[1763623927500,1.66,143.32,143.3,3.3030407]
[1763623927701,1.66,143.32,143.31,0.68]
[1763623929004,1.66,143.32,143.3,7.65796942]
[1763623929194,1.66,143.32,143.3,10.28101012]
[1763623930105,6.97643963,143.34,143.3,10.28101012]
[1763623930324,1.66,143.33,143.3,10.28101012]
[1763623931437,1.66,143.33,143.31,0.68]
[1763623932126,1.66,143.33,143.31,10.28091249]
[1763623933826,1.66,143.33,143.32,0.68]
[1763623935432,0.2,143.37,143.32,3.3030407]
[1763623935638,1.86,143.37,143.35,9.59897373]
[1763623936128,1.86,143.37,143.36,0.68]
[1763623937216,1.86,143.37,143.35,6.97593303]
[1763623937412,1.86,143.37,143.35,7.65593303]
[1763623937620,1.86,143.37,143.36,7.65544642]
[1763623937814,1.86,143.37,143.36,10.27848712]
[1763623939152,0.2,143.37,143.36,10.27848712]
[1763623942523,0.2,143.37,143.36,7.65544642]
[1763623942717,0.2,143.37,143.36,10.27848712]
[1763623945613,0.2,143.37,143.34,35.56147489]
[1763623945936,0.2,143.37,143.35,10.29878964]
[1763623946240,0.2,143.37,143.36,2.6230407]
[1763623946434,0.2,143.37,143.36,3.3230407]
[1763623946650,0.91,143.37,143.33,62.1]
[1763623946941,0.91,143.37,143.34,0.7]
[1763623947139,0.2,143.37,143.34,3.3230407]
[1763623947340,0.2,143.37,143.34,10.29931906]
[1763623947636,0.2,143.37,143.35,0.7]
[1763623948245,0.2,143.37,143.34,9.59941929]
[1763623948536,0.87,143.37,143.34,9.59941929]
[1763623948746,0.87,143.37,143.33,9.59987597]
[1763623948942,0.87,143.37,143.33,10.29987597]
[1763623949240,0.67,143.36,143.33,10.29987597]
[1763623949444,0.67,143.36,143.32,6.97734559]
[1763623949632,0.67,143.36,143.32,7.67734559]
[1763623950030,0.67,143.36,143.32,10.30038629]
[1763623950235,1.66,143.35,143.32,10.30038629]
[1763623951349,2.33,143.35,143.32,7.67734559]
[1763623952045,2.33,143.35,143.32,10.30038629]
[1763623952648,1.66,143.35,143.33,0.7]
[1763623952819,1.66,143.35,143.32,10.30038629]
[1763623953025,1.66,143.35,143.33,0.7]
[1763623953333,1.66,143.35,143.33,3.3230407]
[1763623953733,1.66,143.35,143.34,0.7]
[1763623954155,1.86,143.37,143.34,0.7]
[1763623954332,9.50497099,143.37,143.33,2.6230407]
[1763623954536,9.50497099,143.37,143.33,3.3230407]
[1763623954842,0.67,143.36,143.32,9.60038629]
[1763623955456,1.66,143.35,143.32,2.6230407]
[1763623955747,1.66,143.35,143.32,10.30031358]
[1763623956243,0.2,143.37,143.33,3.3230407]
[1763623956433,1.66,143.36,143.33,3.3230407]
[1763623957248,1.66,143.36,143.33,10.29961586]
[1763623957832,9.30549883,143.36,143.33,6.97657516]
[1763623959226,2.33,143.36,143.33,6.97657516]
[1763623959426,1.66,143.36,143.33,10.29961586]
[1763623961355,1.66,143.36,143.33,7.67657516]
[1763623961833,1.66,143.36,143.34,3.3230407]
[1763623964126,1.66,143.36,143.34,9.59903729]
[1763623964333,1.66,143.36,143.35,0.7]
[1763623964649,1.66,143.36,143.35,3.3230407]
[1763623964952,0.2,143.37,143.35,3.3230407]
[1763623965458,0.2,143.37,143.35,0.7]
[1763623966054,0.2,143.37,143.34,0.7]
[1763623966267,2.33,143.36,143.32,7.67739324]
[1763623966560,2.33,143.36,143.32,10.30043394]
[1763623966763,2.33,143.36,143.33,0.7]
[1763623966971,1.66,143.36,143.33,0.7]
[1763623967142,1.66,143.36,143.33,3.3230407]
[1763623967336,1.66,143.36,143.34,3.3230407]
[1763623967547,1.86,143.37,143.34,3.3230407]
[1763623967837,1.86,143.37,143.34,0.7]
[1763623968035,1.86,143.37,143.35,0.7]
[1763623969346,1.86,143.37,143.34,6.97600562]
[1763623969548,0.2,143.37,143.35,0.7]
[1763623970252,0.2,143.37,143.35,7.67554754]
[1763623970456,0.2,143.37,143.36,0.68]
[1763623971867,0.2,143.37,143.35,6.97554754]
[1763623971868,0.2,143.37,143.35,0.68]
[1763623972069,0.2,143.37,143.35,7.6559239]
[1763623972867,3.2830407,143.36,143.31,0.68]
[1763623973052,4.2830407,143.35,143.31,0.68]
[1763623973253,4.2830407,143.35,143.31,7.65788012]
[1763623973254,1.66,143.35,143.31,7.65788012]
[1763623973446,2.32,143.35,143.31,6.97788012]
[1763623973645,2.32,143.35,143.32,0.68]
[1763623974971,9.29596069,143.35,143.32,0.68]
[1763623975769,2.32,143.35,143.32,7.65735861]
[1763623977272,9.29598652,143.35,143.32,7.65735861]
[1763623978657,8.63598652,143.35,143.32,7.65735861]
[1763623979458,9.29598652,143.35,143.32,7.65735861]
[1763623980277,0.2,143.37,143.33,3.3030407]
[1763623980580,0.2,143.37,143.36,2.6230407]
[1763623980762,0.2,143.37,143.36,4.09266941]
[1763623980957,0.2,143.37,143.36,0.68]
[1763623981159,0.2,143.37,143.36,4.77266941]
[1763623981364,0.2,143.37,143.34,4.77266941]
[1763623981859,0.2,143.37,143.35,0.68]
[1763623982174,0.2,143.37,143.35,7.6558717]
[1763623982475,0.2,143.37,143.35,11.74854111]
[1763623982677,0.2,143.37,143.36,0.68]
[1763623982973,0.2,143.37,143.36,4.77266941]
[1763623983173,0.2,143.37,143.36,18.80096]
[1763623983380,0.2,143.37,143.36,22.89362941]
[1763623984777,0.2,143.37,143.36,29.86907583]
[1763623987177,0.2,143.37,143.36,18.12096]
[1763623987377,0.2,143.37,143.36,29.86907583]
[1763623993160,4.95266941,143.37,143.32,5.86975457]
[1763623993388,9.49520389,143.37,143.31,9.96242398]
[1763623993563,4.75266941,143.36,143.3,22.89362941]
[1763623993762,4.75266941,143.36,143.31,4.09266941]
[1763623993986,0.66,143.35,143.31,4.09266941]
[1763623994214,0.66,143.35,143.31,4.77266941]
[1763623994659,0.66,143.35,143.31,11.75009111]
[1763623995283,4.09266941,143.33,143.28,6.54975457]
[1763623995588,4.09266941,143.32,143.26,6.54975457]
[1763623995889,2.32,143.33,143.3,4.09266941]
[1763623996062,1.66,143.33,143.3,4.09266941]
[1763623996263,1.66,143.33,143.3,4.77266941]
[1763623997074,1.66,143.33,143.3,11.75097208]
[1763623997676,1.66,143.33,143.3,7.65830267]
[1763623998360,1.66,143.33,143.31,0.68]
[1763623998563,4.09266941,143.35,143.31,0.68]
[1763623998760,4.75266941,143.35,143.32,6.97739324]
[1763623999184,2.00878,143.36,143.32,11.75006265]
[1763623999388,6.76144941,143.36,143.32,7.65739324]
[1763623999771,2.00878,143.36,143.33,0.68]
[1763623999977,2.72878,143.36,143.33,0.68]
[1763624000176,2.00878,143.36,143.33,0.68]
[1763624001068,2.00878,143.36,143.34,6.9764197]
[1763624001694,2.00878,143.36,143.33,0.68]
[1763624002293,2.00878,143.36,143.34,4.09266941]
[1763624002696,2.00878,143.36,143.35,0.71]
[1763624003392,0.34878,143.36,143.35,0.71]
[1763624003788,0.34878,143.36,143.35,4.80266941]
[1763624004202,0.34878,143.36,143.35,11.77860244]
[1763624008386,0.34878,143.36,143.35,0.71]
[1763624008591,0.34878,143.36,143.35,4.80266941]
[1763624009187,0.34878,143.36,143.34,11.06907049]
[1763624009512,0.34878,143.36,143.34,11.76907049]
[1763624009685,0.34878,143.36,143.35,4.79266941]
[1763624012501,1.04878,143.36,143.33,80.22096]
[1763624012717,0.34878,143.36,143.34,4.09266941]
[1763624012918,0.34878,143.36,143.34,4.79266941]
[1763624013999,8.0243528,143.36,143.32,4.79266941]
[1763624014490,0.7,143.35,143.32,4.79266941]
[1763624014890,7.3243528,143.36,143.33,4.09266941]
[1763624015209,8.0243528,143.36,143.33,4.09266941]
[1763624015911,9.6843528,143.36,143.33,4.09266941]
[1763624016617,8.9843528,143.36,143.33,4.09266941]
[1763624016788,0.7,143.35,143.32,4.09266941]
[1763624017786,9.6843528,143.36,143.33,4.09266941]
[1763624017984,9.6843528,143.36,143.33,4.79266941]
[1763624019222,8.9843528,143.36,143.33,4.79266941]
[1763624019388,2.00878,143.36,143.33,4.79266941]
[1763624019588,8.98423085,143.36,143.34,4.79266941]
[1763624019788,8.98423085,143.36,143.33,4.09266941]
[1763624019988,8.98423085,143.36,143.33,4.79266941]
[1763624020417,8.98423085,143.36,143.33,4.09266941]
[1763624020619,0.7,143.35,143.32,4.09266941]
[1763624020796,0.7,143.35,143.32,4.79266941]
[1763624021117,8.98423085,143.36,143.33,4.79266941]
[1763624021504,2.00878,143.36,143.35,4.09266941]
[1763624021726,2.00878,143.36,143.35,4.79266941]
[1763624022020,2.00878,143.36,143.35,4.09266941]
[1763624024512,0.34878,143.36,143.34,4.79266941]
[1763624024721,8.02424535,143.36,143.33,4.09266941]
[1763624025723,8.02424535,143.36,143.33,4.79266941]
[1763624026023,7.32424535,143.36,143.33,4.79266941]
[1763624026825,7.32424535,143.36,143.32,4.09266941]
[1763624027026,2.36,143.35,143.31,22.91362941]
[1763624027930,2.36,143.35,143.31,29.89150287]
[1763624029712,8.63620258,143.35,143.33,0.7]
[1763624031331,1.66,143.35,143.33,4.79266941]
[1763624031544,8.63601506,143.35,143.33,0.71]
[1763624032809,8.63601506,143.35,143.32,4.80266941]
[1763624033632,1.66,143.35,143.33,4.80266941]
[1763624034161,1.66,143.35,143.34,0.71]
[1763624034950,1.66,143.35,143.34,7.6864197]
[1763624035123,0.34878,143.36,143.34,11.77908911]
[1763624035439,0.34878,143.36,143.34,4.80266941]
[1763624036731,0.34878,143.36,143.34,11.06907614]
[1763624037052,0.34878,143.36,143.35,0.71]
[1763624037349,0.34878,143.36,143.35,7.68593303]
[1763624037653,0.34878,143.36,143.35,11.77860244]
[1763624040725,0.34878,143.36,143.35,13.43860244]
[1763624042964,0.34878,143.36,143.35,11.96470347]
[1763624043163,0.34878,143.36,143.35,9.34593303]
[1763624043353,0.34878,143.36,143.35,11.96470347]
[1763624048254,0.34878,143.36,143.35,9.59470347]
[1763624048981,0.34878,143.36,143.35,10.30470347]
[1763624049659,0.34878,143.36,143.35,9.59470347]
[1763624049858,1.00878,143.36,143.34,71.69503247]
[1763624050048,0.34878,143.36,143.35,2.61877044]
[1763624051156,0.34878,143.36,143.35,9.59470347]
[1763624051359,0.34878,143.36,143.35,10.30470347]
[1763624052279,0.34878,143.36,143.35,2.61877044]
[1763624052443,0.34878,143.36,143.34,0.71]
[1763624052639,0.34878,143.36,143.34,3.32877044]
[1763624052841,0.34878,143.36,143.34,10.30518388]
[1763624053275,0.34878,143.36,143.35,2.61877044]
[1763624053572,0.34878,143.36,143.35,9.59470347]
[1763624054282,0.34878,143.36,143.35,10.30470347]
[1763624062484,0.2,143.37,143.35,40.56074523]
[1763624062685,0.2,143.37,143.36,23.55267989]
[1763624062850,0.2,143.37,143.36,29.42243446]
[1763624063398,0.2,143.37,143.36,0.67]
[1763624063598,0.2,143.37,143.36,21.40973044]
[1763624063968,0.2,143.37,143.36,28.38517686]
[1763624064508,0.2,143.37,143.36,38.86025862]
[1763624064675,0.2,143.37,143.36,48.64908631]
[1763624069803,0.2,143.39,143.36,66.08770238]
[1763624070006,0.2,143.43,143.41,18.12096]
[1763624070173,0.2,143.5,143.45,18.12096]
[1763624070372,0.2,143.5,143.49,2.61877044]
[1763624070776,0.2,143.5,143.49,3.29877044]
[1763624071293,0.2,143.5,143.49,9.5878972]
[1763624072301,0.2,143.5,143.49,6.96912676]
[1763624072599,0.2,143.5,143.49,9.5878972]
[1763624074375,0.2,143.5,143.49,10.2678972]
[1763624074703,0.2,143.5,143.49,9.5878972]
[1763624076403,0.2,143.5,143.49,10.2678972]
[1763624076591,0.2,143.5,143.49,9.5878972]
[1763624077220,0.2,143.5,143.48,18.80096]
[1763624077221,0.91,143.5,143.48,6.9694898]
[1763624077507,0.2,143.5,143.49,2.61877044]
[1763624078813,0.2,143.5,143.49,3.29877044]
[1763624079021,0.1,143.51,143.49,31.8948122]
[1763624079310,0.1,143.51,143.5,40.52345331]
[1763624079499,0.1,143.51,143.5,50.312281]
[1763624080294,1e-08,143.51,143.5,50.312281]
[1763624081327,1e-08,143.51,143.5,30.04837155]
[1763624083104,1e-08,143.51,143.5,25.08960111]
[1763624083306,1e-08,143.51,143.5,27.70837155]
[1763624083609,1e-08,143.51,143.5,28.38837155]
[1763624083798,1e-08,143.51,143.5,9.58741155]
[1763624083983,1e-08,143.51,143.5,27.70837155]
[1763624086712,0.71,143.63,143.58,18.12096]
[1763624087016,0.71,143.63,143.58,18.80096]
[1763624087697,0.71,143.63,143.58,18.12096]
[1763624088105,0.71,143.63,143.62,1.30854936]
[1763624088301,0.71,143.63,143.6,25.08468265]
[1763624088606,0.71,143.63,143.62,2.61877044]
[1763624091317,0.7,143.63,143.62,2.61877044]
[1763624092291,0.7,143.63,143.62,9.58158898]
[1763624093294,0.7,143.63,143.61,9.58192646]
[1763624094005,0.7,143.63,143.62,2.61877044]
[1763624096134,0.7,143.63,143.62,9.58158898]
[1763624097903,0.7,143.63,143.62,2.61877044]
[1763624098730,0.7,143.63,143.62,9.58158898]
[1763624099225,0.7,143.63,143.6,20.73973044]
[1763624099425,0.7,143.63,143.6,27.70346405]
[1763624100022,0.7,143.63,143.61,2.61877044]
[1763624100322,0.7,143.63,143.62,2.61877044]
[1763624100918,8.89697213,143.73,143.62,3.27877044]
[1763624101101,8.89697213,143.73,143.61,24.37123623]
[1763624101102,12.40759813,143.68,143.63,2.61877044]
[1763624101297,9.78882769,143.66,143.64,2.61877044]
[1763624101502,1.66,143.65,143.64,2.61877044]
[1763624102037,2.36,143.65,143.63,2.61877044]
[1763624102214,0.7,143.64,143.63,2.61877044]
[1763624102532,2.36,143.65,143.63,9.58110421]
[1763624102903,2.36,143.65,143.63,11.03954733]